[Event "DVM U20w 2021"]
[Site "Kiel"]
[Date "2022.07.24"]
[Round "4"]
[White "Grining, Maria"]
[Black "Peglau, Dora"]
[Result "0-1"]
[ECO "D04"]
[WhiteElo "1750"]
[BlackElo "1920"]
[Annotator "TA"]
[PlyCount "78"]
[EventDate "2022.07.23"]
[EventType "team-tourn"]
[EventRounds "7"]
[EventCountry "GER"]
[SourceTitle "playchess.com"]
[Source "ChessBase"]
[SourceQuality "1"]
[TimeControl "40/5400+30:1800+30"]

{[%evp 9,78,17,20,18,28,17,22,11,35,-16,0,0,0,0,18,16,16,0,0,0,0,0,0,-4,0,0,8,12,6,-38,34,44,191,12,13,18,7,0,7,0,0,0,0,0,0,-11,-18,-20,85,0,0,-54,0,-280,-273,-374,-316,-528,-473,-461,-439,-593,-462,-489,-493,-872,-861,-822,-823,-782,-773]} 1. d4 {[%emt 0:00:02]} d5 {[%emt 0:00:33]} 2. Nf3 {[%emt 0:00:16]} Nf6 {[%emt 0:00:41]} 3. e3 {[%emt 0:00:15]} Bf5 {[%emt 0:00:36]} 4. Bd3 {[%emt 0:00:29]} Bg6 {[%emt 0:00:41]} 5. O-O {[%emt 0:02:58]} e6 {[%emt 0:00:56]} 6. b3 {[%emt 0:00:46] D04: Colle System.} Be7 {[%emt 0:03:30]} 7. Bb2 {[%emt 0:00:11]} O-O {[%emt 0:00:28]} 8. Ne5 {[%emt 0:00:34] The position is equal.} c5 {[%emt 0:02:04]} 9. f4 {[%emt 0:02:13]} ({Better is} 9. Nxg6 $14 hxg6 10. Nd2) 9... Nc6 {[%emt 0:05:06]} 10. Nxg6 {[%emt 0:17:15]} hxg6 {[%emt 0:00:23] [#]} 11. c3 $146 {[%emt 0:03:18]} ({Predecessor:} 11. Nd2 a6 12. Rf3 b5 13. Rh3 c4 14. Be2 Bd6 15. g4 g5 16. Qe1 Nh7 17. Qf1 {1-0 (54) Burke,P-Nelson,R Vancouver 1984}) 11... Rc8 {[%emt 0:01:47]} 12. Nd2 {[%emt 0:01:03][%cal Bb1d2,Bd2e4,Be4g5][%mdl 32]} a6 {[%emt 0:04:32]} 13. a4 {[%emt 0:07:10]} Qc7 {[%emt 0:04:26]} 14. Qf3 {[%emt 0:11:07]} Bd6 {[%emt 0:05:42]} 15. Kh1 {[%emt 0:05:32]} Nd7 {[%emt 0:05:23]} 16. e4 {[%emt 0:01:38]} dxe4 {[%emt 0:01:03]} 17. Nxe4 {[%emt 0:00:24]} cxd4 {[%emt 0:01:17]} 18. cxd4 {[%emt 0:02:56]} Be7 {[%emt 0:02:48]} 19. Bc4 {[%emt 0:07:12]} Nf6 {[%emt 0:02:17]} (19... Nb6 $15) 20. Ng5 $1 $14 {[%emt 0:02:50][%cal Og5e6]} Rcd8 {[%emt 0:09:11] [#]} (20... Nd5 $14) 21. Rad1 $2 {[%emt 0:05:20]} (21. Nxe6 $1 $18 {[%mdl 512]} fxe6 22. Bxe6+ Kh8 23. d5) 21... Nd5 $11 {[%emt 0:03:49][%cal Oc7f4]} 22. Qh3 $1 {[%emt 0:03:15][%csl Gg5][%cal Rh3h7]} Bxg5 {[%emt 0:01:00]} 23. fxg5 {[%emt 0:00:09]} Nce7 {[%emt 0:09:24]} 24. Ba3 {[%emt 0:02:47]} Rfe8 $1 {[%emt 0:01:24]} 25. Bxe7 {[%emt 0:01:58]} Qxe7 {[%emt 0:01:43]} 26. Qg3 {[%emt 0:01:38]} Nb6 {[%emt 0:06:40]} 27. Rf3 {[%emt 0:04:58]} Nxc4 {[%emt 0:05:28]} 28. bxc4 {[%emt 0:00:26]} Qb4 {[%emt 0:07:45] [#]} (28... e5 $11 29. d5 e4) 29. Qf4 {[%emt 0:02:33]} (29. Qh4 $1 $16) 29... Rd7 {[%emt 0:05:51] Threatens to win with ...e5.} 30. Rh3 {[%emt 0:02:36]} (30. Qh4 $11) 30... Qxa4 $40 {[%emt 0:01:01][%mdl 128] Black is up to no good.} 31. Re1 {[%emt 0:01:07][%mdl 8192]} (31. Rc1 $11 {and White is okay.}) 31... Qxc4 $19 {[%emt 0:02:10]} 32. Rh4 {[%emt 0:05:00]} Red8 {[%emt 0:01:21]} 33. Rf1 $2 {[%emt 0:00:52]} (33. Qf3 {was the only defense.} Rxd4 34. Rxd4 Rxd4 35. Qxb7) 33... Qxd4 {[%emt 0:01:51] Black is clearly winning.} 34. Qg3 {[%emt 0:00:38]} Qd3 {[%emt 0:00:22][%cal Rd3f1]} 35. Qf2 {[%emt 0:00:18]} Qd2 {[%emt 0:00:56]} 36. Qf3 {[%emt 0:01:29]} Qxg5 {[%emt 0:01:19]} 37. Qh3 {[%emt 0:00:31]} (37. Ra4 $142) 37... f5 {[%emt 0:01:00] Hoping for ...Rd1.} 38. Rh8+ {[%emt 0:02:31]} Kf7 {[%emt 0:00:01] aiming for ...Rd1.} 39. Rxd8 {[%emt 0:00:09]} Qxd8 {[%emt 0:00:26] Weighted Error Value: White=0.63/Black=0.26 (precise)} 0-1

[Event "DVM U20w 2021"]
[Site "Kiel"]
[Date "2022.07.24"]
[Round "4"]
[White "Sickmann, Lisa"]
[Black "Browning, Rebecca"]
[Result "1/2-1/2"]
[ECO "C01"]
[WhiteElo "1672"]
[BlackElo "1938"]
[Annotator "TA"]
[PlyCount "91"]
[EventDate "2022.07.23"]
[EventType "team-tourn"]
[EventRounds "7"]
[EventCountry "GER"]
[SourceTitle "playchess.com"]
[Source "ChessBase"]
[SourceQuality "1"]
[TimeControl "40/5400+30:1800+30"]

{[%evp 9,91,-18,39,3,3,-3,1,2,24,-8,-8,-19,-9,-6,-4,0,27,0,0,0,0,0,15,12,24,18,22,18,26,18,20,24,28,23,30,10,62,40,47,8,17,17,73,64,60,56,64,69,65,39,43,47,56,54,53,25,30,16,52,69,72,72,72,25,25,25,65,63,168,86,77,82,216,216,178,22,26,0,0,0,0,0,0,0]} 1. e4 {[%emt 0:00:02]} e6 {[%emt 0:00:04]} 2. d4 {[%emt 0:00:05]} d5 {[%emt 0:00:02]} 3. Bd3 {[%emt 0:00:05]} c5 {[%emt 0:00:15]} 4. c3 {[%emt 0:00:38]} Nc6 {[%emt 0:00:19]} 5. Ne2 {[%emt 0:00:21]} Bd7 {[%emt 0:00:52]} (5... dxe4 $11 6. Bxe4 Nf6) 6. O-O {[%emt 0:00:16] C01: French: Exchange Variation.} dxe4 {[%emt 0:02:53]} 7. Bxe4 {[%emt 0:00:11]} Nf6 {[%emt 0:00:07]} 8. Bf3 {[%emt 0:00:11] [#]} Bd6 $146 {[%emt 0:02:20]} ({Predecessor:} 8... cxd4 9. Nxd4 Qb6 10. Be3 Bc5 11. Bxc6 Bxc6 12. Nd2 Bxd4 13. Bxd4 Qb5 14. Re1 Qg5 {½-½ (56) Kendi,S (1964)-Cenker,M (2015) Slovakia 2018}) 9. Be3 {[%emt 0:04:29]} cxd4 {[%emt 0:01:46]} 10. cxd4 {[%emt 0:04:56]} Qc7 {[%emt 0:01:45]} 11. h3 {[%emt 0:01:31]} h6 {[%emt 0:05:38]} 12. Nbc3 {[%emt 0:00:26]} a6 {[%emt 0:01:17] Prevents Nb5.} 13. Ne4 {[%emt 0:06:13]} Nxe4 {[%emt 0:01:18]} 14. Bxe4 {[%emt 0:00:10]} O-O {[%emt 0:02:52]} 15. Rc1 {[%emt 0:00:52]} Qd8 {[%emt 0:04:33]} 16. d5 {[%emt 0:04:42]} exd5 {[%emt 0:01:11]} 17. Bxd5 {[%emt 0:00:32]} Be5 {[%emt 0:01:08]} 18. Nc3 {[%emt 0:01:40]} Rb8 {[%emt 0:01:06]} 19. Qf3 {[%emt 0:03:13] Threatens to win with Bc5.} Qf6 {[%emt 0:07:07]} 20. Rfd1 {[%emt 0:01:05]} Qxf3 {[%emt 0:01:50]} 21. Bxf3 {[%emt 0:00:11]} Be6 {[%emt 0:00:19]} 22. b3 {[%emt 0:01:09]} Rbc8 {[%emt 0:06:00]} ({Black should try} 22... Nb4 $11) 23. Nd5 {[%emt 0:01:32][%cal Oc1c6]} (23. Na4 $5 {[%cal Ra4c5]}) 23... Rcd8 {[%emt 0:09:17]} 24. a4 {[%emt 0:03:36]} Kh8 {[%emt 0:11:35]} 25. b4 {[%emt 0:01:09]} Bxd5 {[%emt 0:01:20]} (25... Bd6 $11 {remains equal.}) 26. Bxd5 {[%emt 0:00:17]} Nxb4 {[%emt 0:00:07]} 27. Bc5 {[%emt 0:04:00] A strong pair of Bishops.} Bd6 $1 {[%emt 0:00:29]} 28. Bxd6 {[%emt 0:00:41]} ({Don't play} 28. Bxb7 $6 Bxc5 29. Rxd8 Bxf2+ 30. Kxf2 Rxd8 $11) 28... Rxd6 {[%emt 0:00:06]} 29. Bxb7 {[%emt 0:00:30]} Rfd8 {[%emt 0:04:13]} 30. Rxd6 {[%emt 0:00:31]} Rxd6 $14 {[%emt 0:00:05][%mdl 4096] Endgame KRB-KRN} 31. Rc7 {[%emt 0:00:28]} Kg8 {[%emt 0:02:07]} 32. a5 {[%emt 0:07:38]} Kf8 {[%emt 0:01:16]} 33. Kf1 {[%emt 0:03:04]} Ke8 {[%emt 0:00:54]} 34. Rc4 {[%emt 0:01:01]} Nd3 {[%emt 0:01:41]} 35. Ke2 {[%emt 0:08:33]} Kd7 {[%emt 0:07:02] Against Rc6} 36. Ke3 {[%emt 0:01:22]} (36. f4 $1 $16) 36... Ne5 $11 {[%emt 0:01:05]} 37. Rc5 {[%emt 0:05:54]} f6 {[%emt 0:02:17]} 38. f4 {[%emt 0:02:54]} Nf7 {[%emt 0:00:22] [#]} (38... Nd3 $14 39. Rc3 Nb4) 39. Ke4 {[%emt 0:05:13]} (39. Bc8+ $1 $18 Kd8 40. Bf5) 39... g6 $16 {[%emt 0:01:06]} 40. g4 {[%emt 0:03:55] Inhibits f5+. White is more active.} Nd8 {[%emt 0:05:48]} (40... Rd1 $16 {was worth a try.} 41. Bxa6 Nd6+ 42. Kf3 g5) 41. Bc8+ $18 {[%emt 0:31:02]} Ke8 {[%emt 0:31:53] [#]} 42. Rc7 $2 {[%emt 0:18:53]} ({Better is} 42. h4 $1 $18) 42... Nc6 $1 $11 {[%emt 0:02:00] And now ...Kd8 would win.} 43. Bd7+ {[%emt 0:00:50]} Kd8 {[%emt 0:00:09] The position is equal.} 44. Rxc6 {[%emt 0:00:23]} Kxd7 {[%emt 0:00:05]} 45. Rxd6+ {[%emt 0:00:45]} Kxd6 {[%emt 0:00:05]} 46. Kd4 {[%emt 0:00:26] Weighted Error Value: White=0.21 (precise) /Black=0.16 (very precise)} 1/2-1/2

[Event "DVM U20w 2021"]
[Site "Kiel"]
[Date "2022.07.24"]
[Round "4"]
[White "Albayrak, Berrak"]
[Black "Xie, Kelly"]
[Result "1-0"]
[ECO "B02"]
[WhiteElo "1592"]
[BlackElo "917"]
[Annotator "NA COMBH"]
[PlyCount "97"]
[EventDate "2022.07.23"]
[EventType "team-tourn"]
[EventRounds "7"]
[EventCountry "GER"]
[SourceTitle "playchess.com"]
[Source "ChessBase"]
[SourceQuality "1"]
[TimeControl "40/5400+30:1800+30"]

1. e4 {[%emt 0:00:03]} d5 {[%emt 0:00:06]} 2. exd5 {[%emt 0:00:06]} Nf6 {[%emt 0:00:05]} 3. Nc3 {[%emt 0:00:53]} c6 {[%emt 0:02:22]} 4. dxc6 {[%emt 0:02:54]} Nxc6 {[%emt 0:00:16]} 5. Nf3 {[%emt 0:02:43]} e5 {[%emt 0:00:34]} 6. Bb5 {[%emt 0:08:09]} Qe7 {[%emt 0:06:44]} 7. Qe2 {[%emt 0:04:23]} e4 {[%emt 0:05:19]} 8. Nd4 {[%emt 0:01:35]} Bd7 {[%emt 0:02:20]} 9. Nxc6 {[%emt 0:02:26]} bxc6 {[%emt 0:00:43]} 10. Bc4 {[%emt 0:01:19]} g6 {[%emt 0:04:56]} 11. d3 {[%emt 0:03:01]} Bf5 {[%emt 0:02:09]} 12. dxe4 {[%emt 0:01:39]} Nxe4 {[%emt 0:03:30]} 13. Nxe4 {[%emt 0:10:48]} Bxe4 {[%emt 0:02:58]} 14. O-O {[%emt 0:01:49]} Bg7 {[%emt 0:04:52]} 15. Re1 {[%emt 0:00:54]} O-O {[%emt 0:09:10]} 16. Qxe4 {[%emt 0:01:42]} Qxe4 {[%emt 0:00:50]} 17. Rxe4 {[%emt 0:00:11]} Rae8 {[%emt 0:05:06]} 18. Rxe8 {[%emt 0:01:24]} Rxe8 {[%emt 0:00:18]} 19. Be3 {[%emt 0:00:37]} Bxb2 {[%emt 0:00:50]} 20. Rb1 {[%emt 0:01:06]} Bg7 {[%emt 0:01:47]} 21. Rb7 {[%emt 0:03:32]} Rf8 {[%emt 0:06:13]} 22. Bc5 {[%emt 0:02:37]} h5 {[%emt 0:04:01]} 23. Bxf8 {[%emt 0:00:10]} Bxf8 {[%emt 0:00:20]} 24. Rxf7 {[%emt 0:01:03]} a5 {[%emt 0:00:43]} 25. Rc7+ {[%emt 0:00:27]} Kh8 {[%emt 0:00:34]} 26. Rxc6 {[%emt 0:00:12]} Kg7 {[%emt 0:00:38]} 27. Bd3 {[%emt 0:00:07]} g5 {[%emt 0:01:02]} 28. Rg6+ {[%emt 0:00:08]} Kf7 {[%emt 0:00:25]} 29. Rxg5 {[%emt 0:00:05]} Ke6 {[%emt 0:00:51]} 30. Rxh5 {[%emt 0:00:07]} a4 {[%emt 0:00:33]} 31. a3 {[%emt 0:01:15]} Be7 {[%emt 0:00:28]} 32. Ra5 {[%emt 0:01:01]} Bxa3 {[%emt 0:00:42]} 33. Rxa4 {[%emt 0:00:00]} Bd6 {[%emt 0:00:19]} 34. Ra6 {[%emt 0:00:00]} Kd5 {[%emt 0:00:16]} 35. c4+ {[%emt 0:00:00]} Kc5 {[%emt 0:00:16]} 36. Rxd6 {[%emt 0:00:03]} Kxd6 {[%emt 0:00:49]} 37. h4 {[%emt 0:00:10]} Ke6 {[%emt 0:00:18]} 38. h5 {[%emt 0:00:10]} Kf6 {[%emt 0:00:10]} 39. c5 {[%emt 0:00:07]} Kg5 {[%emt 0:00:15]} 40. c6 {[%emt 0:00:08]} Kxh5 {[%emt 0:00:19]} 41. c7 {[%emt 0:30:08]} Kg5 {[%emt 0:30:17]} 42. c8=Q {[%emt 0:00:24]} Kf6 {[%emt 0:00:10]} 43. Qf5+ {[%emt 0:00:16]} Ke7 {[%emt 0:00:10]} 44. g4 {[%emt 0:00:14]} Kd6 {[%emt 0:00:17]} 45. g5 {[%emt 0:00:09]} Kc6 {[%emt 0:00:09]} 46. g6 {[%emt 0:00:10]} Kc7 {[%emt 0:00:11]} 47. g7 {[%emt 0:00:08]} Kd6 {[%emt 0:00:09]} 48. g8=Q {[%emt 0:00:21]} Kc6 {[%emt 0:00:10]} 49. Qgg6+ {[%emt 0:14:46]} 1-0

[Event "DVM U20w 2021"]
[Site "Kiel"]
[Date "2022.07.24"]
[Round "4"]
[White "Malinowsky, Celina"]
[Black "Wilmink, Anna"]
[Result "0-1"]
[ECO "C42"]
[WhiteElo "1519"]
[BlackElo "1692"]
[Annotator "NA COMBH"]
[PlyCount "108"]
[EventDate "2022.07.23"]
[EventType "team-tourn"]
[EventRounds "7"]
[EventCountry "GER"]
[SourceTitle "playchess.com"]
[Source "ChessBase"]
[SourceQuality "1"]
[TimeControl "40/5400+30:1800+30"]

1. e4 {[%emt 0:00:03]} e5 {[%emt 0:00:09]} 2. Nf3 {[%emt 0:00:09]} Nf6 {[%emt 0:00:07]} 3. Nc3 {[%emt 0:00:11]} Bb4 {[%emt 0:00:09]} 4. Bc4 {[%emt 0:04:01]} Bxc3 {[%emt 0:00:51]} 5. dxc3 {[%emt 0:00:14]} d6 {[%emt 0:00:42]} 6. Bg5 {[%emt 0:02:53]} h6 {[%emt 0:00:15]} 7. Bxf6 {[%emt 0:01:19]} Qxf6 {[%emt 0:02:26]} 8. Qd3 {[%emt 0:03:12]} Nd7 {[%emt 0:01:58]} 9. Nd2 {[%emt 0:07:46]} Nc5 {[%emt 0:03:09]} 10. Qg3 {[%emt 0:02:18]} Bd7 {[%emt 0:03:28]} 11. f3 {[%emt 0:01:59]} g5 {[%emt 0:06:29]} 12. h3 {[%emt 0:03:41]} Qg6 {[%emt 0:02:23]} 13. Nb3 {[%emt 0:08:17]} Nxb3 {[%emt 0:03:59]} 14. Bxb3 {[%emt 0:01:06]} O-O-O {[%emt 0:03:52]} 15. O-O-O {[%emt 0:00:56]} f5 {[%emt 0:04:11]} 16. exf5 {[%emt 0:01:24]} Qxf5 {[%emt 0:03:45]} 17. Qf2 {[%emt 0:01:13]} Kb8 {[%emt 0:04:16]} 18. Bd5 {[%emt 0:02:04]} h5 {[%emt 0:03:28]} 19. Be4 {[%emt 0:02:11]} Qf7 {[%emt 0:04:10]} 20. Kb1 {[%emt 0:06:00]} Be6 {[%emt 0:05:21]} 21. b3 {[%emt 0:03:08]} g4 {[%emt 0:06:19]} 22. hxg4 {[%emt 0:00:57]} hxg4 {[%emt 0:00:57]} 23. c4 {[%emt 0:01:15]} gxf3 {[%emt 0:05:15]} 24. Qxf3 {[%emt 0:01:34]} Qxf3 {[%emt 0:01:39]} 25. Bxf3 {[%emt 0:00:26]} Kc8 {[%emt 0:02:43]} 26. Rxh8 {[%emt 0:05:46]} Rxh8 {[%emt 0:00:18]} 27. Rg1 {[%emt 0:00:11]} b6 {[%emt 0:04:24]} 28. g4 {[%emt 0:01:29]} Kd7 {[%emt 0:02:09]} 29. Be4 {[%emt 0:02:06]} Rh4 {[%emt 0:05:06]} 30. Bf5 {[%emt 0:01:10]} Ke7 {[%emt 0:02:29]} 31. Bxe6 {[%emt 0:02:01]} Kxe6 {[%emt 0:00:16]} 32. g5 {[%emt 0:00:22]} Rh8 {[%emt 0:00:46]} 33. Rf1 {[%emt 0:00:53]} Rg8 {[%emt 0:00:47]} 34. Rf6+ {[%emt 0:00:12]} Ke7 {[%emt 0:00:25]} 35. Rf5 {[%emt 0:00:26]} Rf8 {[%emt 0:01:10]} 36. Rxf8 {[%emt 0:01:49]} Kxf8 {[%emt 0:00:05]} 37. Kc1 {[%emt 0:00:19]} Kf7 {[%emt 0:00:12]} 38. Kd2 {[%emt 0:00:24]} Kg6 {[%emt 0:00:14]} 39. Ke3 {[%emt 0:00:44]} Kxg5 {[%emt 0:00:10]} 40. Ke4 {[%emt 0:00:16]} Kg4 {[%emt 0:01:39]} 41. a3 {[%emt 0:33:09]} Kg5 {[%emt 0:37:51]} 42. b4 {[%emt 0:08:12]} Kf6 {[%emt 0:00:46]} 43. a4 {[%emt 0:01:21]} Ke6 {[%emt 0:01:23]} 44. c3 {[%emt 0:03:12]} c6 {[%emt 0:01:34]} 45. b5 {[%emt 0:01:32]} c5 {[%emt 0:01:46]} 46. Ke3 {[%emt 0:01:05]} Kf5 {[%emt 0:00:22]} 47. Kf3 {[%emt 0:00:34]} e4+ {[%emt 0:00:23]} 48. Ke3 {[%emt 0:00:25]} Ke5 {[%emt 0:00:06]} 49. Ke2 {[%emt 0:00:42]} Kf4 {[%emt 0:00:09]} 50. Kf2 {[%emt 0:00:14]} e3+ {[%emt 0:00:07]} 51. Ke2 {[%emt 0:00:13]} Ke4 {[%emt 0:00:06]} 52. a5 {[%emt 0:00:41]} bxa5 {[%emt 0:00:13]} 53. b6 {[%emt 0:00:36]} axb6 {[%emt 0:00:05]} 54. Ke1 {[%emt 0:00:09]} Kd3 {[%emt 0:00:06]} 0-1

[Event "DVM U20w 2021"]
[Site "Kiel"]
[Date "2022.07.24"]
[Round "4"]
[White "Schwarzfischer, Julia"]
[Black "Rudolph, Eva"]
[Result "0-1"]
[ECO "B20"]
[WhiteElo "1314"]
[BlackElo "1892"]
[Annotator "NA COMBH"]
[PlyCount "100"]
[EventDate "2022.07.23"]
[EventType "team-tourn"]
[EventRounds "7"]
[EventCountry "GER"]
[SourceTitle "playchess.com"]
[Source "ChessBase"]
[SourceQuality "1"]
[TimeControl "40/5400+30:1800+30"]

1. e4 {[%emt 0:00:01]} c5 {[%emt 0:00:06]} 2. g3 {[%emt 0:00:10]} d5 {[%emt 0:00:12]} 3. e5 {[%emt 0:00:18]} Bf5 {[%emt 0:01:01]} 4. d3 {[%emt 0:00:26]} Nc6 {[%emt 0:00:52]} 5. Bg2 {[%emt 0:00:17]} Nxe5 {[%emt 0:01:04]} 6. f4 {[%emt 0:00:40]} Bg4 {[%emt 0:03:01]} 7. Nf3 {[%emt 0:01:48]} Nxf3+ {[%emt 0:01:40]} 8. Bxf3 {[%emt 0:00:11]} Bxf3 {[%emt 0:00:11]} 9. Qxf3 {[%emt 0:00:04]} e6 {[%emt 0:01:27]} 10. c4 {[%emt 0:02:49]} Nf6 {[%emt 0:02:10]} 11. Nc3 {[%emt 0:03:47]} Be7 {[%emt 0:04:34]} 12. g4 {[%emt 0:01:19]} dxc4 {[%emt 0:05:52]} 13. dxc4 {[%emt 0:00:24]} Qb6 {[%emt 0:04:59]} 14. g5 {[%emt 0:06:46]} Nd7 {[%emt 0:01:17]} 15. b3 {[%emt 0:00:47]} O-O-O {[%emt 0:08:35]} 16. Bb2 {[%emt 0:01:09]} e5 {[%emt 0:02:20]} 17. O-O-O {[%emt 0:14:56]} Rhe8 {[%emt 0:06:46]} 18. Rhe1 {[%emt 0:07:39]} Bf8 {[%emt 0:15:10]} 19. Nd5 {[%emt 0:01:35]} Qg6 {[%emt 0:01:03]} 20. h4 {[%emt 0:01:07]} e4 {[%emt 0:05:26]} 21. Qg4 {[%emt 0:02:20]} f5 {[%emt 0:01:37]} 22. Qh3 {[%emt 0:01:52]} Qe6 {[%emt 0:04:26]} 23. Nc3 {[%emt 0:03:29]} Bd6 {[%emt 0:02:10]} 24. Qe3 {[%emt 0:01:21]} g6 {[%emt 0:05:24]} 25. Nb5 {[%emt 0:01:23]} Bb8 {[%emt 0:00:25]} 26. Rd2 {[%emt 0:05:00]} Qb6 {[%emt 0:05:04]} 27. Red1 {[%emt 0:01:14]} Nf8 {[%emt 0:00:46]} 28. Rd5 {[%emt 0:05:31]} Ne6 {[%emt 0:02:46]} 29. Be5 {[%emt 0:01:58]} Rxd5 {[%emt 0:05:48]} 30. Rxd5 {[%emt 0:00:38]} Rd8 {[%emt 0:01:27]} 31. Bxb8 {[%emt 0:01:34]} Kxb8 {[%emt 0:00:39]} 32. Qd2 {[%emt 0:00:59]} Nd4 {[%emt 0:02:07]} 33. Rxd8+ {[%emt 0:00:43]} Qxd8 {[%emt 0:00:03]} 34. b4 {[%emt 0:02:31]} a6 {[%emt 0:01:16]} 35. Nxd4 {[%emt 0:00:20]} Qxd4 {[%emt 0:00:32]} 36. Qxd4 {[%emt 0:01:57]} cxd4 {[%emt 0:00:13]} 37. a4 {[%emt 0:00:26]} Kc7 {[%emt 0:00:14]} 38. Kc2 {[%emt 0:00:47]} a5 {[%emt 0:00:41]} 39. bxa5 {[%emt 0:03:10]} Kc6 {[%emt 0:00:08]} 40. Kb3 {[%emt 0:00:17]} Kc5 {[%emt 0:00:11]} 41. Kc2 {[%emt 0:30:31]} Kxc4 {[%emt 0:30:06]} 42. Kd2 {[%emt 0:00:23]} e3+ {[%emt 0:00:30]} 43. Kc1 {[%emt 0:00:16]} Kc3 {[%emt 0:00:11]} 44. Kd1 {[%emt 0:00:06]} d3 {[%emt 0:00:06]} 45. Ke1 {[%emt 0:00:22]} e2 {[%emt 0:00:30]} 46. a6 {[%emt 0:00:19]} bxa6 {[%emt 0:00:06]} 47. a5 {[%emt 0:00:07]} Kc2 {[%emt 0:00:28]} 48. Kf2 {[%emt 0:01:56]} Kd2 {[%emt 0:00:18]} 49. Kg2 {[%emt 0:00:42]} Ke3 {[%emt 0:00:29]} 50. Kh2 {[%emt 0:01:21]} Kf2 {[%emt 0:00:53]} 0-1

[Event "DVM U20w 2021"]
[Site "Kiel"]
[Date "2022.07.24"]
[Round "4"]
[White "Tabakh, Najat"]
[Black "Albayrak, Nese Pinar"]
[Result "0-1"]
[ECO "A01"]
[WhiteElo "1313"]
[BlackElo "1651"]
[Annotator "NA COMBH"]
[PlyCount "40"]
[EventDate "2022.07.23"]
[EventType "team-tourn"]
[EventRounds "7"]
[EventCountry "GER"]
[SourceTitle "playchess.com"]
[Source "ChessBase"]
[SourceQuality "1"]
[TimeControl "40/5400+30:1800+30"]

1. b3 {[%emt 0:00:04]} e5 {[%emt 0:00:23]} 2. Bb2 {[%emt 0:00:09]} Nc6 {[%emt 0:00:23]} 3. e3 {[%emt 0:00:39]} a6 {[%emt 0:11:40]} 4. Bc4 {[%emt 0:03:03]} d5 {[%emt 0:00:39]} 5. Be2 {[%emt 0:00:42]} Nf6 {[%emt 0:01:23]} 6. Nf3 {[%emt 0:02:29]} Bd6 {[%emt 0:00:41]} 7. c4 {[%emt 0:01:34]} O-O {[%emt 0:10:46]} 8. cxd5 {[%emt 0:05:52]} Nxd5 {[%emt 0:00:16]} 9. e4 {[%emt 0:00:15]} Nf4 {[%emt 0:01:02]} 10. O-O {[%emt 0:01:06]} Qf6 {[%emt 0:02:19]} 11. g3 {[%emt 0:04:36]} Nh3+ {[%emt 0:15:03]} 12. Kg2 {[%emt 0:02:04]} Qg6 {[%emt 0:07:33]} 13. Nc3 {[%emt 0:01:04]} Nf4+ {[%emt 0:00:49]} 14. Kh1 {[%emt 0:01:52]} Nxe2 {[%emt 0:07:17]} 15. Qxe2 {[%emt 0:01:25]} Bg4 {[%emt 0:00:40]} 16. Qe3 {[%emt 0:01:15]} Bc5 {[%emt 0:09:06]} 17. Qe2 {[%emt 0:05:32]} Nd4 {[%emt 0:02:18]} 18. Qd3 {[%emt 0:05:41]} Bxf3+ {[%emt 0:00:23]} 19. Kg1 {[%emt 0:00:18]} Qg4 {[%emt 0:01:33]} 20. Nd1 {[%emt 0:01:17]} Ne2+ {[%emt 0:00:15]} 0-1

[Event "DVM U20w 2021"]
[Site "Kiel"]
[Date "2022.07.24"]
[Round "4"]
[White "Hoffmann, Sophia"]
[Black "Peglau, Charis"]
[Result "0-1"]
[ECO "A47"]
[WhiteElo "1214"]
[BlackElo "1870"]
[Annotator "NA COMBH"]
[PlyCount "104"]
[EventDate "2022.07.23"]
[EventType "team-tourn"]
[EventRounds "7"]
[EventCountry "GER"]
[SourceTitle "playchess.com"]
[Source "ChessBase"]
[SourceQuality "1"]
[TimeControl "40/5400+30:1800+30"]

1. d4 {[%emt 0:00:03]} Nf6 {[%emt 0:00:07]} 2. Nf3 {[%emt 0:00:05]} e6 {[%emt 0:00:08]} 3. Bf4 {[%emt 0:00:07]} b6 {[%emt 0:00:14]} 4. e3 {[%emt 0:00:11]} Bb7 {[%emt 0:01:43]} 5. Nbd2 {[%emt 0:00:41]} Nh5 {[%emt 0:00:33]} 6. Bg3 {[%emt 0:00:36]} Be7 {[%emt 0:01:17]} 7. Bd3 {[%emt 0:00:40]} c5 {[%emt 0:02:51]} 8. c3 {[%emt 0:00:50]} Nc6 {[%emt 0:01:07]} 9. O-O {[%emt 0:03:26]} Nxg3 {[%emt 0:01:23]} 10. fxg3 {[%emt 0:00:56]} d5 {[%emt 0:04:02]} 11. Qc2 {[%emt 0:09:39]} h6 {[%emt 0:01:05]} 12. Rae1 {[%emt 0:03:04]} Qc7 {[%emt 0:19:23]} 13. e4 {[%emt 0:03:37]} O-O-O {[%emt 0:07:02]} 14. exd5 {[%emt 0:02:20]} Rxd5 {[%emt 0:01:12]} 15. Be4 {[%emt 0:01:27]} Rdd8 {[%emt 0:00:29]} 16. Bxc6 {[%emt 0:01:43]} Bxc6 {[%emt 0:04:02]} 17. Ne5 {[%emt 0:02:29]} Bf6 {[%emt 0:00:25]} 18. Ne4 {[%emt 0:05:27]} Bxe5 {[%emt 0:19:42]} 19. dxe5 {[%emt 0:00:58]} Bxe4 {[%emt 0:00:11]} 20. Qxe4 {[%emt 0:01:14]} Kb8 {[%emt 0:00:39]} 21. b4 {[%emt 0:05:07]} Rd7 {[%emt 0:08:21]} 22. a4 {[%emt 0:03:32]} Rhd8 {[%emt 0:00:54]} 23. a5 {[%emt 0:04:15]} Qb7 {[%emt 0:12:23]} 24. Qg4 {[%emt 0:03:12]} g6 {[%emt 0:01:13]} 25. bxc5 {[%emt 0:02:08]} Rd2 {[%emt 0:03:59]} 26. Qe4 {[%emt 0:02:29]} Qxe4 {[%emt 0:03:18]} 27. Rxe4 {[%emt 0:00:07]} Rc2 {[%emt 0:02:29]} 28. Ref4 {[%emt 0:02:58]} Rdd2 {[%emt 0:00:15]} 29. R4f2 {[%emt 0:00:44]} Rxf2 {[%emt 0:00:19]} 30. Rxf2 {[%emt 0:00:05]} Rxf2 {[%emt 0:00:06]} 31. Kxf2 {[%emt 0:00:05]} bxa5 {[%emt 0:00:14]} 32. Ke3 {[%emt 0:00:35]} Kc7 {[%emt 0:00:15]} 33. Kd4 {[%emt 0:01:11]} Kc6 {[%emt 0:00:51]} 34. Kc4 {[%emt 0:01:00]} a4 {[%emt 0:00:36]} 35. Kb4 {[%emt 0:00:49]} a3 {[%emt 0:00:07]} 36. Kxa3 {[%emt 0:00:06]} Kxc5 {[%emt 0:00:03]} 37. Kb3 {[%emt 0:01:48]} a5 {[%emt 0:03:09]} 38. Ka4 {[%emt 0:01:25]} Kc4 {[%emt 0:00:04]} 39. Kxa5 {[%emt 0:00:25]} Kxc3 {[%emt 0:00:04]} 40. Kb5 {[%emt 0:00:57]} Kd4 {[%emt 0:00:07]} 41. Kb4 {[%emt 0:32:13]} Kxe5 {[%emt 0:30:04]} 42. Kc3 {[%emt 0:00:14]} Ke4 {[%emt 0:00:12]} 43. Kd2 {[%emt 0:00:51]} f5 {[%emt 0:00:28]} 44. Ke2 {[%emt 0:01:29]} g5 {[%emt 0:01:14]} 45. Kf2 {[%emt 0:01:19]} Kd3 {[%emt 0:01:30]} 46. Kf3 {[%emt 0:00:49]} e5 {[%emt 0:00:07]} 47. g4 {[%emt 0:02:13]} e4+ {[%emt 0:00:25]} 48. Kg3 {[%emt 0:01:10]} f4+ {[%emt 0:00:08]} 49. Kh3 {[%emt 0:00:36]} e3 {[%emt 0:00:50]} 50. g3 {[%emt 0:00:13]} fxg3 {[%emt 0:00:11]} 51. Kxg3 {[%emt 0:00:51]} e2 {[%emt 0:00:11]} 52. Kf2 {[%emt 0:00:50]} Kd2 {[%emt 0:00:04]} 0-1